fUSD/lending_fUSD_20240727
["ID","MTS","AMOUNT","RATE_DAILY","PERIOD"]
[333384995,1722088237831,-2460.6,0.00010999,2]
[333384996,1722088237841,-2460.6,0.00010999,2]
[333384997,1722088237850,-2460.6,0.00010999,2]
[333384998,1722088237859,-2460.6169707,0.00010999,2]
[333384999,1722088237868,-527.70785863,0.00010999,2]
[333385000,1722088237879,-500.0,0.00010999,2]
[333385001,1722088237889,-500.0,0.00010999,2]
[333385002,1722088237900,-500.0,0.00010999,2]
[333385003,1722088237911,-500.0,0.00010999,2]
[333385004,1722088237920,-500.0,0.00010999,2]
[333385005,1722088237930,-500.0,0.00010999,2]
[333385006,1722088237940,-500.0,0.00010999,2]
[333385007,1722088237949,-500.0,0.00010999,2]
[333385008,1722088237960,-307.94035157,0.00010999,2]
[333385009,1722088237969,-3543.3,0.00010999,2]
[333385010,1722088237980,-3543.3,0.00010999,2]
[333385011,1722088237989,-3543.3,0.00010999,2]
[333385012,1722088237998,-3543.3,0.00010999,2]
[333385014,1722088238009,-3543.3,0.00010999,2]
[333385015,1722088238018,-3543.3,0.00010999,2]
[333385016,1722088238027,-3543.3,0.00010999,2]
[333385017,1722088238036,-3543.3,0.00010999,2]
[333385018,1722088238045,-3543.3,0.00010999,2]
[333385019,1722088238054,-3543.3,0.00010999,2]
[333385020,1722088238063,-3543.3,0.00010999,2]
[333385021,1722088238073,-3543.3,0.00010999,2]
[333385022,1722088238082,-3543.3,0.00010999,2]
[333385023,1722088238092,-3543.3,0.00010999,2]
[333385024,1722088238101,-3543.3,0.00010999,2]
[333385025,1722088238110,-3543.3,0.00010999,2]
[333385026,1722088238119,-3543.3,0.00010999,2]
[333385027,1722088238129,-3543.3,0.00010999,2]
[333385028,1722088238138,-3543.3,0.00010999,2]
[333385029,1722088238148,-3543.3,0.00010999,2]
[333385030,1722088238157,-3543.3,0.00010999,2]
[333385031,1722088238167,-3543.36266976,0.00010999,2]
[333385032,1722088238176,-500.0,0.00010999,2]
[333385033,1722088238186,-548.64730089,0.00010999,2]
[333385034,1722088238195,-500.0,0.00010999,2]
[333385035,1722088238204,-500.0,0.00010999,2]
[333385036,1722088238220,-500.0,0.00010999,2]
[333385037,1722088238231,-500.0,0.00010999,2]
[333385038,1722088238240,-491.74047209,0.00010999,2]
[333385039,1722088238250,-500.0,0.00010999,2]
[333385040,1722088238259,-500.0,0.00010999,2]
[333385041,1722088238269,-500.0,0.00010999,2]
[333385042,1722088238278,-568.39225271,0.00010999,2]
[333385043,1722088238287,-500.0,0.00010999,2]
[333385044,1722088238297,-500.0,0.00010999,2]
[333385045,1722088238306,-500.0,0.00010999,2]
[333385046,1722088238315,-295.25209346,0.00010999,2]
[333385047,1722088238324,-1338.43,0.00010999,2]
[333385048,1722088238333,-1338.43,0.00010999,2]
[333385049,1722088238343,-1338.43,0.00010999,2]
[333385050,1722088238352,-1338.43,0.00010999,2]
[333385051,1722088238363,-1338.43,0.00010999,2]
[333385052,1722088238372,-1338.43,0.00010999,2]
[333385053,1722088238382,-1338.43,0.00010999,2]
[333385054,1722088238391,-1338.43,0.00010999,2]
[333385055,1722088238401,-1338.43,0.00010999,2]
[333385056,1722088238411,-1338.43,0.00010999,2]
[333385057,1722088238421,-500.0,0.00010999,2]
[333385058,1722088238432,-1338.43,0.00010999,2]
[333385059,1722088238442,-644.01420702,0.00010999,2]
[333385060,1722088238451,-1338.43,0.00010999,2]
[333385061,1722088238461,-1338.43,0.00010999,2]
[333385062,1722088238470,-1338.43,0.00010999,2]
[333385063,1722088238480,-1338.43,0.00010999,2]
[333385064,1722088238490,-1338.43,0.00010999,2]
[333385065,1722088238499,-1338.43,0.00010999,2]
[333385066,1722088238509,-1338.43,0.00010999,2]
[333385067,1722088238519,-1338.43,0.00010999,2]
[333385068,1722088238529,-1338.43,0.00010999,2]
[333385069,1722088238539,-1338.43,0.00010999,2]
[333385070,1722088238549,-1338.54808651,0.00010999,2]
[333385071,1722088238562,-500.0,0.00010999,2]
[333385072,1722088238572,-500.0,0.00010999,2]
[333385073,1722088238583,-517.28,0.00010999,2]
[333385074,1722088238591,-500.0,0.00010999,2]
[333385075,1722088238602,-517.28,0.00010999,2]
[333385076,1722088238612,-500.0,0.00010999,2]
[333385077,1722088238621,-517.28,0.00010999,2]
[333385078,1722088238631,-517.28,0.00010999,2]
[333385079,1722088238643,-539.32411456,0.00010999,2]
[333385080,1722088238653,-517.28,0.00010999,2]
[333385081,1722088238662,-517.28,0.00010999,2]
[333385082,1722088238671,-517.28,0.00010999,2]
[333385083,1722088238680,-517.28,0.00010999,2]
[333385084,1722088238689,-517.28,0.00010999,2]
[333385085,1722088238699,-517.28,0.00010999,2]
[333385086,1722088238843,-517.28,0.00010999,2]
[333385087,1722088238853,-517.28,0.00010999,2]
[333385088,1722088238863,-500.0,0.00010999,2]
[333385089,1722088238874,-517.28,0.00010999,2]
[333385090,1722088238884,-500.0,0.00010999,2]
[333385091,1722088238894,-517.28,0.00010999,2]
[333385092,1722088238906,-500.0,0.00010999,2]
[333385093,1722088238917,-500.0,0.00010999,2]
[333385094,1722088238928,-517.28,0.00010999,2]
[333385095,1722088238937,-500.0,0.00010999,2]
[333385096,1722088238946,-500.0,0.00010999,2]
[333385097,1722088238956,-500.0,0.00010999,2]
[333385098,1722088238966,-500.0,0.00010999,2]
[333385099,1722088238976,-500.0,0.00010999,2]
[333385100,1722088238986,-500.0,0.00010999,2]
[333385101,1722088238995,-500.0,0.00010999,2]
[333385102,1722088239005,-517.28,0.00010999,2]
[333385103,1722088239015,-517.28,0.00010999,2]
[333385104,1722088239025,-517.28,0.00010999,2]
[333385105,1722088239035,-500.0,0.00010999,2]
[333385106,1722088239045,-500.0,0.00010999,2]
[333385107,1722088239054,-517.28,0.00010999,2]
[333385108,1722088239064,-500.0,0.00010999,2]
[333385109,1722088239074,-500.0,0.00010999,2]
[333385110,1722088239084,-517.28,0.00010999,2]
[333385111,1722088239093,-500.0,0.00010999,2]
[333385112,1722088239103,-517.28,0.00010999,2]
[333385114,1722088239112,-500.0,0.00010999,2]
[333385115,1722088239122,-517.34482251,0.00010999,2]
[333385116,1722088239132,-605.43514359,0.00010999,2]
[333385117,1722088239141,-500.0,0.00010999,2]
[333385118,1722088239151,-500.0,0.00010999,2]
[333385119,1722088239160,-506.04224854,0.00010999,2]
[333385121,1722088239170,-872.17,0.00010999,2]
[333385122,1722088239179,-872.17,0.00010999,2]
[333385123,1722088239191,-872.17,0.00010999,2]
[333385125,1722088239200,-872.17,0.00010999,2]
[333385126,1722088239210,-872.17,0.00010999,2]
[333385128,1722088239220,-872.17,0.00010999,2]
[333385130,1722088239233,-872.17,0.00010999,2]
[333385132,1722088239242,-872.17,0.00010999,2]
[333385134,1722088239252,-872.17,0.00010999,2]
[333385135,1722088239261,-872.17,0.00010999,2]
[333385136,1722088239271,-872.17,0.00010999,2]
[333385137,1722088239280,-872.17,0.00010999,2]
[333385138,1722088239289,-872.17,0.00010999,2]
[333385140,1722088239298,-872.17,0.00010999,2]
[333385142,1722088239308,-872.17,0.00010999,2]
[333385144,1722088239317,-872.17,0.00010999,2]
[333385145,1722088239326,-872.17,0.00010999,2]
[333385146,1722088239335,-872.17,0.00010999,2]
[333385147,1722088239344,-872.17,0.00010999,2]
[333385148,1722088239354,-872.17,0.00010999,2]
[333385149,1722088239363,-872.17,0.00010999,2]
[333385150,1722088239372,-872.20714204,0.00010999,2]
[333385151,1722088239382,-500.0,0.00010999,2]
[333385152,1722088239391,-500.0,0.00010999,2]
[333385153,1722088239400,-221.03323979,0.00010999,2]
[333385154,1722088239410,-500.0,0.00010999,2]
[333385155,1722088239420,-500.0,0.00010999,2]
[333385156,1722088239429,-500.0,0.00010999,2]
[333385157,1722088239438,-500.0,0.00010999,2]
[333385158,1722088239448,-511.45693855,0.00010999,2]
[333385159,1722088239457,-699.51,0.00010999,2]
[333385160,1722088239467,-699.51,0.00010999,2]
[333385161,1722088239478,-699.51,0.00010999,2]
[333385162,1722088239488,-699.51,0.00010999,2]
[333385163,1722088239497,-699.51,0.00010999,2]
[333385164,1722088239507,-699.51,0.00010999,2]
[333385165,1722088239518,-699.51,0.00010999,2]
[333385166,1722088239527,-699.51,0.00010999,2]
[333385167,1722088239537,-699.51,0.00010999,2]
[333385168,1722088239547,-699.51,0.00010999,2]
[333385169,1722088239557,-699.51,0.00010999,2]
[333385170,1722088239570,-699.51,0.00010999,2]
[333385171,1722088239581,-699.51,0.00010999,2]
[333385172,1722088239593,-699.51,0.00010999,2]
[333385173,1722088239603,-699.51,0.00010999,2]
[333385174,1722088239613,-699.51,0.00010999,2]
[333385175,1722088239625,-699.51,0.00010999,2]
[333385176,1722088239637,-699.51,0.00010999,2]
[333385177,1722088239647,-699.51,0.00010999,2]
[333385178,1722088239657,-699.51,0.00010999,2]
[333385179,1722088239666,-699.51,0.00010999,2]
[333385180,1722088239676,-699.67070469,0.00010999,2]
[333385181,1722088239685,-500.0,0.00010999,2]
[333385182,1722088239695,-500.0,0.00010999,2]
[333385183,1722088239705,-494.38026721,0.00010999,2]
[333385184,1722088239716,-496.46285913,0.00010999,2]
[333385185,1722088239728,-500.0,0.00010999,2]
[333385186,1722088239737,-500.0,0.00010999,2]
[333385187,1722088239747,-500.0,0.00010999,2]
[333385188,1722088239757,-500.0,0.00010999,2]
[333385189,1722088239767,-500.0,0.00010999,2]
[333385191,1722088239778,-500.0,0.00010999,2]
[333385192,1722088239789,-225.12720346,0.00010999,2]
[333385193,1722088239799,-150.0,0.00010999,2]
[333385194,1722088239810,-501353.37956991,0.00011,2]
[333385195,1722088239832,-10374.45,0.00011,2]
[333385196,1722088239843,-6660.0,0.00011,2]
[333385197,1722088239855,-6064.22891518,0.00011,2]
[333385198,1722088239875,-1073.0,0.00010788,2]
[333385199,1722088239886,-284.62885533,0.00011,2]
[333385201,1722088239897,-2411.95134433,0.00011,2]
[333385202,1722088239909,-898.53028455,0.00011,2]
[333385203,1722088239920,-947.56950504,0.00011,2]
[333385204,1722088239931,-967.08683004,0.00011,2]
[333385205,1722088239943,-1331.32137545,0.00011,2]
[333385206,1722088239954,-35780.32980231,0.00011,2]
[333385207,1722088239965,-950.90717399,0.00011,2]
[333385208,1722088239979,-570.09,0.00011,2]
[333385209,1722088239993,-3378.90602154,0.00011,2]
[333385210,1722088240004,-3463.85394789,0.00011,2]
[333385211,1722088240017,-1200.22252239,0.00011,2]
[333385222,1722088240908,-295.52,0.00010959,2]
[333385223,1722088240918,-556.6,0.00010998,2]
[333385224,1722088240928,-1112.99465331,0.00010999,2]
[333385225,1722088240937,-1399.75364751,0.00011,2]
[333385226,1722088240948,-2167.0181534,0.00011,2]
[333385227,1722088240959,-3182.66143813,0.00011,2]
[333385228,1722088240976,-250.33780553,0.00011,2]
[333385229,1722088240987,-399.70833916,0.00011,2]
[333385230,1722088240999,-5166.40520498,0.00011,2]
[333385231,1722088241010,-3275.5943737,0.00011,2]
[333385232,1722088241021,-4321.4,0.00011,2]
[333385233,1722088241032,-573.2828905,0.00011,2]
[333385234,1722088241043,-1169.55400002,0.00011,2]
[333385235,1722088241054,-822.49017547,0.00011,2]
[333385236,1722088241388,-358.48667185,0.00011,2]
[333385237,1722088241404,-223720.4578671,0.00011,2]
[333385238,1722088241414,-184670.02762269,0.00011,2]
[333385239,1722088241426,-351146.60770362,0.00011,2]
[333385240,1722088241439,-11122.32697242,0.00011,2]
[333385241,1722088241451,-9881.99222486,0.00011,2]
[333385242,1722088241463,-7768.1384,0.00011,2]
[333385243,1722088241476,-7146.2938,0.00011,2]
[333385244,1722088241488,-18261.65070178,0.00011,2]
[333385245,1722088241504,-1041.05796,0.00011,2]
[333385246,1722088241516,-603.45575644,0.00011,2]
[333385247,1722088241527,-910.60655848,0.00011,2]
[333385248,1722088241635,-356832.14924787,0.00011,2]
[333385249,1722088241650,-434.6749995,0.00011,2]
[333385250,1722088241661,-286.14852919,0.00011,2]
[333385251,1722088241672,-2363.53985746,0.00011,2]
[333385252,1722088241683,-9712.57020352,0.00011,2]
[333385253,1722088241695,-856.32350196,0.00011,2]
[333385254,1722088241706,-2401.71997208,0.00011,2]
[333385255,1722088241717,-1434.53671423,0.00011,2]
[333385256,1722088241729,-1033.17754882,0.00011,2]
[333385267,1722088244047,-500.0,0.00010998,2]
[333385268,1722088244057,-556.49732665,0.00010999,2]
[333385269,1722088244067,-1132.11929519,0.00011,2]
[333385270,1722088244078,-639.09988034,0.00011,2]
[333385271,1722088244089,-1080.87495054,0.00011,2]
[333385272,1722088244100,-26223.84272709,0.00011,2]
[333385273,1722088244120,-1921.10489784,0.00011,2]
[333385274,1722088244132,-4330.59626476,0.00011,2]
[333385277,1722088244160,-55869.52698285,0.00011,2]
[333385278,1722088244172,-7160.00000002,0.00011,2]
[333385279,1722088244325,-915.43335499,0.00011,2]
[333385297,1722088246052,-500.0,0.00010998,2]
[333385299,1722088246062,-309.48988492,0.00010999,2]
[333385300,1722088246091,-227.67011508,0.00010999,2]
[333385301,1722088246100,-52181.16946884,0.00011,2]
[333385302,1722088246130,-711.38074383,0.00011,2]
[333385303,1722088246141,-1749.91574108,0.00011,2]
[333385304,1722088246153,-778.1088,0.00011,2]
[333385305,1722088246165,-729.92665396,0.00011,2]
[333385306,1722088246180,-649.99877428,0.00011,2]
[333385307,1722088246192,-493.706,0.00011,2]
[333385308,1722088246204,-1235.87774031,0.00011,2]
[333385309,1722088246215,-292.775,0.00011,2]
[333385310,1722088246227,-279.82539136,0.00011,2]
[333385314,1722088246816,-1000.0,0.00011,2]
[333385315,1722088246827,-20359.84992364,0.00011,2]
[333385324,1722088273463,150.5,0.0001789,120]
[333385325,1722088273521,150.5,0.0001789,120]
[333385327,1722088274019,150.5,0.0001788,120]
[333385328,1722088274295,150.5,0.0001788,120]
[333385330,1722088274793,270.61,0.0001787,120]
[333385388,1722088393100,261.86,0.0001789,120]
[333385389,1722088393566,150.5,0.0001789,120]
[333385390,1722088394029,150.5,0.0001788,120]
[333385391,1722088394507,150.5,0.0001787,120]
[333385392,1722088394998,150.5,0.0001789,120]
[333385394,1722088395526,150.5,0.0001788,120]
[333385395,1722088396337,150.5,0.0001787,120]
[333385396,1722088396479,150.5,0.0001789,120]
[333385397,1722088396942,150.5,0.0001788,120]
[333385398,1722088397452,224.0,0.0001789,120]
[333385408,1722088438518,454.0,6.152e-05,2]
[333385416,1722088457925,155.50533946,6.152e-05,2]
[333385417,1722088459699,1015.0,0.000148,120]
[333385418,1722088461913,1000.66616531,6.152e-05,2]
[333385420,1722088462971,1369.83582042,6.152e-05,2]
[333385421,1722088467144,200.79837853,6.152e-05,2]
[333385422,1722088467409,291.58113767,6.152e-05,2]
[333385423,1722088467516,305.44142731,6.152e-05,2]
[333385424,1722088468708,10204.1717313,6.152e-05,2]
[333385425,1722088468736,10000.0,6.152e-05,2]
[333385432,1722088500677,300.0,6.151e-05,2]
[333385435,1722088513224,261.86,0.0001789,120]
[333385443,1722088723257,330.87,0.0001337,30]
[333385471,1722089269759,303.29,0.0001337,30]
[333385508,1722089432344,-263.1918,8.078e-05,2]
[333385509,1722089433298,-184.8855,8.078e-05,2]
[333385510,1722089433308,-150.0,8.178e-05,2]
[333385511,1722089433318,-4765.536077,8.178e-05,2]
[333385512,1722089433328,-754.49,8.219e-05,2]
[333385513,1722089433337,-150.0,9.518e-05,2]
[333385514,1722089433347,-150.0,9.655e-05,2]
[333385515,1722089433356,-794.25896574,9.655e-05,2]
[333385516,1722089433372,-499.60047608,9.655e-05,2]
[333385517,1722089433516,-706.14055818,9.655e-05,2]
[333385518,1722089433525,-300.0,9.696e-05,2]
[333385519,1722089433535,-1271.22967069,9.697e-05,2]
[333385520,1722089433546,-664.03948097,9.697e-05,2]
[333385521,1722089433557,-2777.8060692,9.697e-05,2]
[333385522,1722089433571,-8863.42451007,9.697e-05,2]
[333385523,1722089433582,-10323.50026907,9.697e-05,2]
[333385524,1722089433591,-1000.0,9.881e-05,2]
[333385525,1722089433600,-826.21843813,0.0001,2]
[333385534,1722089438285,-423.78156187,0.0001,2]
[333385535,1722089438295,-13.92787148,0.0001018,2]
[333385536,1722089438335,-136.07212852,0.0001018,2]
[333385537,1722089438345,-230.89021248,0.00010181,2]
[333385538,1722089438357,-6060.00003987,0.00010181,2]
[333385539,1722089438368,-400.0,0.00010181,2]
[333385540,1722089439412,-2700.56806369,0.00010181,2]
[333385541,1722089439482,-2773.28413778,0.00010181,2]
[333385542,1722089439680,-11271.99330583,0.00010181,2]
[333385545,1722089440323,-1997.0,0.00010181,2]
[333385546,1722089440560,-431.21626245,0.00010181,2]
[333385547,1722089440678,-3245.9,0.00010181,2]
[333385548,1722089440689,-3100.09378254,0.00010181,2]
[333385549,1722089440700,-169.97558448,0.00010181,2]
[333385550,1722089440709,-3158.82441553,0.00010181,2]
[333385551,1722089440720,-3476.17075192,0.00010181,2]
[333385552,1722089440730,-255.11818235,0.00010181,2]
[333385553,1722089440795,-553.996,0.00010181,2]
[333385819,1722089443268,-927.915154,0.00010181,2]
[333385823,1722089443313,-1627.9654962,0.00010181,2]
[333385824,1722089443323,-4347.38455551,0.00010182,2]
[333385825,1722089443334,-966.54999995,0.00010182,2]
[333385826,1722089443355,-523.44,0.00010182,2]
[333385839,1722089444452,-826.25901472,0.00010182,2]
[333385840,1722089444514,-75802.6313046,0.00010182,2]
[333385841,1722089444690,-7256.41071856,0.00010182,2]
[333385989,1722089446282,-333.59357269,0.00010182,2]
[333386057,1722089446966,-4883.9047737,0.00010182,2]
[333386096,1722089447251,-18635.44619575,0.00010182,2]
[333386099,1722089447267,-1140.33466279,0.00010182,2]
[333386101,1722089447279,-324.81,0.00010182,2]
[333386103,1722089447291,-3508.17034089,0.00010182,2]
[333386105,1722089447303,-5907.18381131,0.00010182,2]
[333386108,1722089447315,-1020.87821306,0.00010182,2]
[333386111,1722089447339,-653.30554627,0.00010182,2]
[333386114,1722089447354,-1663.6,0.00010182,2]
[333386116,1722089447365,-591.5645175,0.00010182,2]
[333386118,1722089447377,-5584.88640838,0.00010182,2]
[333386120,1722089447389,-3224.0758753,0.00010182,2]
[333386122,1722089447399,-500.0,0.00010182,2]
[333386124,1722089447411,-619.76020313,0.00010182,2]
[333386127,1722089447422,-1093.81028589,0.00010182,2]
[333386129,1722089447432,-81.74522198,0.00010182,2]
[333386131,1722089447443,-1412.93673964,0.00010182,2]
[333386134,1722089447465,-3492.36803838,0.00010182,2]
[333386136,1722089447475,-150.99,0.00010182,2]
[333386138,1722089447485,-150.99,0.00010182,2]
[333386140,1722089447494,-1096.99,0.00010182,2]
[333386142,1722089447505,-783.92,0.00010182,2]
[333386144,1722089447515,-1015.12602919,0.00010216,2]
[333386146,1722089447525,-150.0,0.00010378,2]
[333386148,1722089447535,-150.0,0.00010378,2]
[333386150,1722089447544,-150.0,0.00010378,2]
[333386152,1722089447554,-150.0,0.00010378,2]
[333386154,1722089447563,-851.22,0.00010378,2]
[333386156,1722089447572,-150.0,0.00010378,2]
[333386158,1722089447582,-150.0,0.00010378,2]
[333386160,1722089447591,-150.0,0.00010378,2]
[333386162,1722089447601,-1000.0,0.000104,2]
[333386164,1722089447610,-754.49,0.00010458,2]
[333386166,1722089447620,-220.48,0.00010493,2]
[333386168,1722089447629,-11141.90765006,0.000105,2]
[333386170,1722089447641,-52998.00394994,0.000105,2]
[333386172,1722089447651,-428.25410448,0.00010566,2]
[333386174,1722089447660,-484.5080051,0.00010581,2]
[333386176,1722089447670,-150.0,0.00010599,2]
[333386178,1722089447679,-150.0,0.00010599,7]
[333386180,1722089447689,-150.0,0.00010599,7]
[333386182,1722089447698,-987744.92250993,0.000106,2]
[333386353,1722089868158,278.01,0.0001337,30]
[333386359,1722090343891,254.84,0.0001337,30]
[333386424,1722090631685,-799.86,8.219e-05,2]
[333386425,1722090631696,-2249.6,9.346e-05,2]
[333386426,1722090631707,-250.0,9.346e-05,2]
[333386427,1722090631718,-300.0,9.39e-05,2]
[333386428,1722090631728,-300.0,9.39e-05,2]
[333386429,1722090631742,-1748.12955685,9.391e-05,2]
[333386430,1722090631829,-553.0,9.391e-05,2]
[333386431,1722090631842,-825.77885809,9.391e-05,2]
[333386432,1722090631855,-3330.38520001,9.391e-05,2]
[333386448,1722090637511,-675.71323632,9.391e-05,2]
[333386449,1722090637526,-4002.28308001,9.391e-05,2]
[333386450,1722090637657,-540.65357155,9.391e-05,2]
[333386451,1722090637669,-4666.7588797,9.391e-05,2]
[333386452,1722090637681,-6916.1,9.391e-05,2]
[333386453,1722090637800,-641.19761747,9.391e-05,2]
[333386454,1722090637810,-1961.68,9.407e-05,2]
[333386455,1722090637820,-250.0,9.627e-05,2]
[333386456,1722090637829,-258.2357,9.655e-05,2]
[333386457,1722090637839,-1164.96,9.672e-05,2]
[333386458,1722090637849,-205.0,9.8e-05,2]
[333386459,1722090637858,-1000.0,9.82e-05,2]
[333386460,1722090637868,-500.0,9.9e-05,3]
[333386461,1722090637877,-192.51,9.912e-05,2]
[333386463,1722090637886,-999.99,9.912e-05,2]
[333386465,1722090637896,-1250.0,0.0001,2]
[333386466,1722090637905,-1000.0,0.0001,3]
[333386467,1722090637914,-1500.0,0.000101,3]
[333386468,1722090637923,-2000.0,0.000102,3]
[333386469,1722090637933,-1596.55,0.00010293,2]
[333386470,1722090637943,-2500.0,0.000103,3]
[333386471,1722090637952,-162.57,0.00010378,2]
[333386472,1722090637961,-500.0,0.000104,3]
[333386473,1722090637970,-799.86,0.00010461,2]
[333386474,1722090637979,-3000.0,0.0001049,2]
[333386475,1722090637989,-237.49,0.00010493,2]
[333386476,1722090638001,-150.0,0.00010499,2]
[333386477,1722090638010,-163.8951949,0.000105,2]
[333386478,1722090638019,-295.9404,0.000105,2]
[333386479,1722090638030,-947.5427,0.000105,2]
[333386480,1722090638039,-9977.57838767,0.000105,2]
[333386481,1722090638050,-1783.02825849,0.000105,2]
[333386482,1722090638061,-5900.67865384,0.000105,2]
[333386483,1722090638071,-13063.23634616,0.000105,2]
[333386484,1722090638093,-45062.51665384,0.000105,2]
[333386485,1722090638102,-10548.441,0.000105,2]
[333386486,1722090638111,-7500.0,0.000105,2]
[333386487,1722090638120,-503.72185611,0.000105,3]
[333386488,1722090638130,-175.7417,0.000105,2]
[333386489,1722090638139,-500.0,0.000105,3]
[333386490,1722090638148,-461.36,0.000105,2]
[333386491,1722090638158,-230.0229,0.000105,2]
[333386492,1722090638167,-165.7419,0.000105,2]
[333386493,1722090638176,-7118.04337496,0.000105,2]
[333386494,1722090638185,-2622.9738,0.000105,2]
[333386495,1722090638195,-285.50273632,0.000105,2]
[333386496,1722090638204,-163.36125358,0.000105,2]
[333386497,1722090638213,-242.65654439,0.00010509,2]
[333386498,1722090638224,-57.34345561,0.00010509,2]
[333386499,1722090638234,-300.0,0.00010509,2]
[333386500,1722090638246,-150.0,0.00010509,2]
[333386501,1722090638255,-255.35013815,0.00010509,2]
[333386504,1722090639563,-274.74986185,0.00010509,2]
[333386505,1722090639572,-150.0,0.00010509,2]
[333386506,1722090639582,-355.93,0.00010509,2]
[333386507,1722090639592,-150.0,0.00010509,2]
[333386509,1722090639602,-355.93,0.00010509,2]
[333386511,1722090639611,-355.93,0.00010509,2]
[333386513,1722090639621,-1539.26013815,0.000106,2]
[333386516,1722090639632,-1569.083724,0.000106,2]
[333386518,1722090639643,-1406.81909534,0.000106,2]
[333386520,1722090639655,-261.17171729,0.000106,2]
[333386521,1722090639667,-1249.74849996,0.000106,2]
[333386522,1722090639679,-251.624732,0.000106,2]
[333386523,1722090639691,-302.76800001,0.000106,2]
[333386524,1722090639703,-5493.56193189,0.000106,2]
[333386525,1722090639714,-42363.42440152,0.000106,2]
[333386526,1722090639726,-5873.89872731,0.000106,2]
[333386527,1722090639842,-16012.5,0.000106,2]
[333386528,1722090639853,-566.18888113,0.000106,2]
[333386529,1722090639864,-346.25,0.000106,2]
[333386530,1722090639876,-361.84632352,0.000106,2]
[333386531,1722090639889,-2319.29600018,0.000106,2]
[333386532,1722090639968,-8289.43859866,0.000106,2]
[333386533,1722090639980,-7243.72531169,0.000106,2]
[333386534,1722090639991,-1963.25914205,0.000106,2]
[333386535,1722090640003,-10066.1744346,0.000106,2]
[333386536,1722090640015,-819.45729106,0.000106,2]
[333386537,1722090640026,-1473.79608462,0.000106,2]
[333386538,1722090640038,-3569.6177846,0.000106,2]
[333386539,1722090640049,-463.97290752,0.000106,2]
[333386540,1722090640061,-1425.47269214,0.000106,2]
[333386541,1722090640072,-349132.63483912,0.000106,2]
[333386542,1722090640083,-3906.81954123,0.000106,2]
[333386543,1722090640095,-704.38948625,0.000106,2]
[333386545,1722090640106,-2138.54995,0.000106,2]
[333386793,1722090642573,-2051.96602235,0.000106,2]
[333386794,1722090642585,-1794.18698479,0.000106,2]
[333386795,1722090642603,-6855.90067227,0.000106,2]
[333386796,1722090642639,-566.37876372,0.000106,2]
[333386797,1722090642676,-704.09202264,0.000106,2]
[333386798,1722090642689,-49845.0,0.000106,2]
[333386799,1722090642707,-651.33802245,0.000106,2]
[333386800,1722090642719,-4112.61326764,0.000106,2]
[333386803,1722090642743,-706405.69928091,0.000106,2]
[333386824,1722090642942,-43398.82618049,0.000106,2]
[333386826,1722090642954,-13815.19568082,0.000106,2]
[333386829,1722090642965,-1746.04129229,0.000106,2]
[333386831,1722090642976,-10433.92662478,0.000106,2]
[333386833,1722090642987,-23802.92957847,0.000106,2]
[333386835,1722090642999,-20439.95268357,0.000106,2]
[333386836,1722090643011,-53005.6,0.000106,2]
[333386958,1722090645556,-580.23278742,0.000106,2]
[333386960,1722090645568,-1657.25362323,0.000106,2]
[333386962,1722090645579,-1780.43176568,0.000106,2]
[333386982,1722090645763,-264.419,0.000106,2]
[333386984,1722090645775,-3187.19048631,0.000106,2]
[333386986,1722090645786,-1008.49411124,0.000106,2]